{"text_format":"1","workbook":"xlsx","n_sheets":10,"sheets":["s1","s2","s3","s4","s5","s6","s7","s8","بحث","Setting"],"not_rendered":{"charts":0,"images":0,"macros":1,"external_links":0,"defined_names":12,"comments":0,"pivot_tables":0},"unopened":[],"bounds":{"document_bytes":16777216,"sheet_cells":100000,"rows_first":2000,"rows_last":500,"rows_between":2000,"halvings":0,"cell_chars":16384,"cell_head_chars":4096},"cells_cut":0,"cells_raw":0,"read":"whole","date_system":"1900"}

{"sheet":"s1","index":0,"n_rows":40,"n_cols":21,"rows_kept":40,"cut":false,"hidden":false,"merged":[[2,0,2,3]]}
[679,{"$f":"(A1-250)/100","v":4.29}]
[]
["ثانوية بنات"]
["ت","الاسم ","العنوان الوظيفي",null,null,null,null,null,null,null,null,null,null,null,null,null,null,null,null,null,"الراتب الصافي"]
[1,"بتول عبد توماية","مديرة"]
[2,"سلمى محمد جعفر محسن","معاونة"]
[3,"انتصار حمزه محمد","معاونة"]
[4,"بنية علي اكبر محمد","معاونة"]
[5,"ايمان جبار عظيم","باحث اجتماعي"]
[6,"مروة رياض وحيد","قاعدة بيانات"]
[7,"زينب عبد توماية علي","مدرس"]
[8,"اسماء صدر الدين حسن","مدرس"]
[9,"جميلة نصر الدين قاسم","مدرس"]
[10,"نغم خوام عبد الصاحب","مدرس"]
[11,"نجلاء حسن تايه","مدرس"]
[12,"سهام جميل زاهي","مدرس"]
[13,"شيماء خوام عبد الصاحب","مدرس"]
[14,"عبير عبد الهادي حمادي","مدرس"]
[15,"هالة محمد خليل","مدرس"]
[16,"وسن عبد المهدي محمد","مدرس"]
[17,"وجدان محمد حسين","مدرس"]
[18,"ازهار محمد غني","مدرس"]
[19,"رسل حمودي كامل","مدرس"]
[20,"مها جليل جواد","مدرس"]
[21,"ميعاد كاظم عزيز","مدرس"]
[22,"مريم عمران محمد","مدرس"]
[23,"فاطمة طه مكي","مدرس"]
[24,"رحاب فؤاد رشاد","مدرس"]
[25,"احلام جاسم محمد ","مدرس"]
[26,"ورود كريم محمد","مدرس"]
[27,"ايلاف صبيح جواد","مدرس"]
[28,"سارة جعفر عبد الحميد","مدرس"]
[29,"غادة منير تقي","مدرس"]
[30,"فاطمة حسين عليوي","مدرس"]
[null,"مروة رياض وحيد"]
[null,"امير عبد المنعم عبد الصاحب شير علي"]
[null,"وديان توفيق اسماعيل"]
[null,"مكية دغيم موسى"]
[null,"وداد شاكر جبر عيسى"]
[null,"فوزية كريم ياسين"]

{"sheet":"s2","index":1,"n_rows":32,"n_cols":3,"rows_kept":32,"cut":false,"hidden":false,"merged":[[2,0,2,3]]}
[476,{"$f":"(A1-250)/100","v":2.2599999999999998}]
[]
["ثانوية البنين"]
["ت","الاسم ","العنوان الوظيفي"]
[1,"هادي جاسم محمد","مدير"]
[2,"شذى كاظم ابراهيم","معاونة"]
[3," علي كاظم شهيد","معاون"]
[4,"عبد الباسط محمد","مدرس"]
[5,"علي دايخ عبد الأمير","مدرس"]
[6,"امير عبد المنعم شكر","مدرس"]
[7,"ناظم جودي كاظم","مدرس"]
[8,"صلاح محمد علي عبد","مدرس"]
[9,"تغريد عبد الكريم","مدرس"]
[10,"علي وديع القزاز","مدرس"]
[11,"حسين صاحب حسين","مدرس"]
[12,"حسن علي محمد","مدرس"]
[13,"امير محمد حسن","مدرس"]
[14,"مهدي طالب حمادي","مدرس"]
[15,"قاسم عباس عبد المحمد ","مدرس"]
[16,"حوراء فاضل عباس"]
[17,"حسن جميل مال الله"]
[18,"تحسين علب عباس الموسوي"]
[19,"ليث رسول عبد موسى"]
[20,"اشواق راسم شهيد"]
[21,"قيس محمد رضا عبد الهادي"]
[22,"حيدر احمد تولي"]
[23,"عماد كاظم عباس"]
[24,"زكريا عيسى علي"]
[25,"حيدر علي عبد الرضا"]
[26,"ضمياء اموري مجيد"]
[27,"وسام جمال حميد حسون"]
[28,"حليمة عبد الواحد مجيد"]

{"sheet":"s3","index":2,"n_rows":29,"n_cols":3,"rows_kept":29,"cut":false,"hidden":false,"merged":[[2,0,2,3]]}
[214]
[]
["متوسطة المتميزين بنين"]
["ت","الاسم ","العنوان الوظيفي"]
[1,"هدى عبد الكاظم حسن","معاونة"]
[2,"حسين علي جاسم","مسؤول تربية"]
[null,"صفا عادل محمد باقر","إدارية"]
[3,"علياء نعمه مرزوك","مدرس"]
[4,"نضال مهدي محمد علي","مدرس"]
[5,"امال عبد الامير الاطرش","مدرس"]
[6,"شيماء عبد الزهرة مجيد","مدرس"]
[7,"شهب جواد عبد الواحد","مدرس"]
[8,"نزار عبد الرزاق مراد","مدرس"]
[10,"يسرى محمد علي حمزه","مدرس"]
[11,"منى محمد علي جبار","مدرس"]
[12,"عذراء محمد باقر محمد","مدرس"]
[13,"وفاء ماجد سلطان","مدرس"]
[14,"عباس علي حسين","مدرس"]
[15,"سيناء رزاق علي","مدرس"]
[16,"ليلى طعمه عواد","مدرس"]
[17,"شيرين حمودي عبد الهادي","مدرس"]
[18,"فائزه عبد الامير","مدرس"]
[19,"حيدر جاسم عبد الل..","مدرس"]
[null,"يوسف عبد الحكيم"]
[null,"لمياء صباح احمد عباس"]
[null,"رشا كامل هويدي ياسين"]
[null,"فخرية محمد علي حمزة"]
[null,"صفا عادل محمد باقر"]
[null,"حسين علي محمد ابراهيم"]

{"sheet":"s4","index":3,"n_rows":41,"n_cols":3,"rows_kept":41,"cut":false,"hidden":false,"merged":[[2,0,2,3]]}
[986,{"$f":"(A1-250)/100","v":7.36}]
[]
["ابتدائية بنين"]
["ت","الاسم ","العنوان الوظيفي"]
[1,"شيماء طالب ناصر ","معاونة"]
[2,"منتهى عبود حمود جاسم الحسناوي","معاونة"]
[3,"الاء حميد محمد علي هاشم الهاشمي","اداري"]
[4,"هديل رياض وداعة جواد مزرة","قاعدة بيانات"]
[5,"امال كاظم عبد الأمير صالح الأعسم","معلمة"]
[6,"حوراء حميد مسلم","معلمة"]
[7,"شيماء عبد مهدي عيسى الركابي","معلمة"]
[8,"بشائر جودي كاظم حسون القرة غولي","مدرس"]
[9,"وفاء عباس مسلم الدعمي","معلمة"]
[10,"تماضر رحيم عبد الكعبي","مدرس"]
[11,"هند خزعل عمران","معلمة"]
[12,"رسل عبد المجيد عبد الحميد","مدرس"]
[13,"شجى رزاق عبد فلحي","معلمة"]
[14,"اسراء عبد الوهاب عبد الامير","معلمة"]
[15,"نادية كاظم خليل ","معلمة"]
[16,"ايمان طالب عبد ايوب عبد الفتلاوي","مدرس"]
[17,"غصون حليم عبد الحسين","مدرس"]
[18,"ازهار شاكر خضير عباس الشمري ","مدرس"]
[19,"حوراء علي مسلم","معلمة"]
[20,"سارة عبد الزهرة نجم عبد الجبوري","مدرس"]
[21,"اسراء كامل رحيم","معلمة"]
[22,"زينب عماد عبد الل.. المندلاوي","معلمة"]
[23,"هدى راهي جبار اسماعيل","معلمة"]
[24,"حنان مهدي محمد علي الكيشوان","مدرس"]
[25,"فرح رعد إبراهيم ","مدرس"]
[26,"زهراء عبد الامير عزيز الموسوي"]
[27,"نور حسن حميد"]
[28,"منال هلال ناجي خوير"]
[29,"ولاء حاكم هجول"]
[30,"سوزان مجيد عباس"]
[31,"جنان حنوف كاظم"]
[32,"زهراء كاظم علي محمد حرز"]
[33,"غصون حليم عبد الحسين"]
[34,"رقية جواد عبد الكاظم علي"]
[35,"نورهان عبد الامير علي عبد الله"]
[36,"نور الهدى سليم هادي مهدي"]
[37,"مريم ماجد موسى","معاونة"]

{"sheet":"s5","index":4,"n_rows":27,"n_cols":3,"rows_kept":27,"cut":false,"hidden":false,"merged":[[2,0,2,3]]}
[679,{"$f":"(A1-250)/100","v":4.29}]
[]
["ابتدائية بنات"]
["ت","الاسم ","العنوان الوظيفي"]
[1,"خلود عبود حمود","معاونة"]
[2,"حوراء ميثم مجيد","معاونة"]
[3,"سوزان ادور مهدي","معاونة"]
[4,"راوية صالح مهدي","قاعدة بيانات"]
[5,"فائزة نوري ابو اللوخ","باحث اجتماعي"]
[6,"عبير جاسم نصيف","معلم"]
[7,"اسماء نوري عبد الحسين","معلم"]
[8,"حوراء حبيب مهدي","معلم"]
[9,"ختام عبد منذور","معلم"]
[10,"سكينة سلام عبد","معلم"]
[12,"اسراء زهير غني","معلم"]
[13,"امنة قاسم نعمه","معلم"]
[14,"عبير صالح مهدي","معلم"]
[15,"زينب محمد ابراهيم","معلم"]
[16,"نور الهدى سلام عبد","معلم"]
[17,"رقية عبد السجاد","معلم"]
[18,"اسراء حائر كحيط","معلم"]
[19,"فاطمة صباح كاظم فاهم","معلم"]
[20,"ضحى كاظم جاسم ","معلم"]
[21,"سميرة كاظم خضير","معلمه"]
[null,"دعاء محسن عبود"]
[null,"زينب خليل نعمه"]
[null,"سيناء حمزة راضي عبود"]

{"sheet":"s6","index":5,"n_rows":38,"n_cols":21,"rows_kept":38,"cut":false,"hidden":false,"merged":[[2,0,2,3]]}
[]
[]
["أساسية بنين"]
["ت","الاسم ","العنوان الوظيفي",null,null,null,null,null,null,null,null,null,null,null,null,null,null,null,null,"السلف","الراتب الصافي"]
[1,"نورا معين مجيد","مديرة"]
[2,"رسل نعمة غني موسى الحمامي","معاونة"]
[3,"لمى محمد عبد الجليل راضي ","معاونة"]
[4,"نسرين كاظم جاسم","قاعدة بيانات"]
[5,"زينب عبد الحسن جبر","مدرس"]
[6,"اسماء عبد الله هادي هاني الجراح","مدرس"]
[7,"رؤى علي حسن أحمد الخطيب ","مدرس"]
[8,"حنان عباس علي عبود مجي","مدرس"]
[9,"علياء كريم محمد","مدرس"]
[10,"زينب رزاق كاظم","مدرس"]
[11,"سلوى جابر يوسف","مدرس"]
[12,"نور عبد الاميرعزيز","مدرس"]
[13,"اسماء انيس هادي جعفر محي الدين","مدرس"]
[14,"ميساء مسلم كاظم عبد العبودي","مدرس"]
[15,"رحيمة محمد عبد زيد العبدلي","مدرس"]
[16,"بشائر جبار عزيز الشمري","مدرس"]
[17,"ريام كاظم ناصر كاظم","مدرس"]
[18,"سهام عواد محمد حسن العادلي ","مدرس"]
[19,"رشا كريم حسن الجنابي","مدرس"]
[20,"رنا سليم مهدي الطباطبائي","معلمة"]
[21,"زهراء صاحب مهدي لفتة الحسناوي","مدرس"]
[22,"لمى حاتم صادق مجيد الأنباري","مدرس"]
[23,"فضاء عواد جاسم موسى","مدرس"]
[24,"ازهار احمد محمود حسين الششترلي ","مدرس"]
[25,"هديل عادل محمد باقر الشماع","مدرس"]
[26,"مصطفى سلمان حسين","مدرس"]
[27,"وسام رحيم حسن ","مدرس"]
[28,"سيف حيدر عبد الكاظم","مدرس"]
[29,"شفاء عبد الجبار كاظم","معلمة"]
[30,"حوراء سلمان كاظم حبيب العتيجاوي","معلمة"]
[31,"نورا زهير شاكر","معلمة"]
[32,"منار كريم منصور","معلمة"]
[33,"زينب خليل نعمه","مدرس"]
[34,"جنان جليل جواد ","معلمه"]

{"sheet":"s7","index":6,"n_rows":48,"n_cols":21,"rows_kept":48,"cut":false,"hidden":false,"merged":[[2,0,2,3]]}
[]
[]
["أساسية بنات"]
["ت","الاسم ","العنوان الوظيفي",null,null,null,null,null,null,null,null,null,null,null,null,null,null,null,null,null,"الراتب الصافي"]
[1,"اسماء ضياء حسن","مديرة"]
[2,"عذراء علي حسن","معاونة"]
[3,"احلام لطيف عبد اليمة","معاونة"]
[4,"مريم ماجد موسى","معاونة"]
[5,"صفاء محمد حميد","قاعدة بيانات"]
[6,"انتظار جبار عباس","باحث اجتماعي"]
[7,"عذراء غني احمد","مدرس"]
[8,"إسراء علاء حسين ","معلم"]
[9,"رباب مهدي صالح","مدرس"]
[10,"زينب ياسر شريف","مدرس"]
[11,"رشا محمد عيسى","مدرس"]
[12,"عفاف توفيق عباس","مدرس"]
[13,"ميامي كريم كنش","مدرس"]
[14,"نهى احمد محمود","مدرس"]
[15,"اسيل خضر عباس","مدرس"]
[16,"رشا عماد كامل","مدرس"]
[17,"نجلاء محسن مجيد","مدرس"]
[18,"ورود مجيد  شاكر","مدرس"]
[19,"زينب عباس سعيد","مدرس"]
[20,"حوراء حسين كاظم","مدرس"]
[21,"اشواق محمد عبيد","مدرس"]
[22,"شيماء رزاق كاظم محمود","مدرس"]
[23,"شيماء عبد المهدي ناجي","مدرس"]
[24,"قمر علي محسن علوان","مدرس"]
[25,"صبا نعمان عباس","مدرس"]
[26,"سيناء حمزه راضي ","مدرس"]
[27,"زينب حسن علي جمعه","مدرس"]
[28,"زهراء شفيع عبد مدلل","مدرس"]
[29,"الاء عبد الاله فرج","مدرس"]
[30,"نبراس صادق رزاق","مدرس"]
[31,"انتصار عبد توماية ","مدرس"]
[32,"نور راضي محسن","مدرس"]
[34,"صبا نعمان عباس","مدرس"]
[35,"فاطمة جابر عبد الهادي ","مدرس"]
[null,"شيماء موحان عطية"]
[null,"زينب صباح محمد سعيد سيد سلمان"]
[null,"شفاء عبد الجبار كاظم"]
[null,"اسماء نوري عبد الحسن الزرفي"]
[null,"دعاء نجم عبود نجم"]
[null,"زينب فائز مهدي حسن"]
[null,"الاء علي محمد جودة الناجي"]
[null,"زينب حسن عبد الامير الهيبي"]
[null,"سرى رضا علوان الرفيعي"]
[null,"ياسمين كرجي احمد الدهوي"]

{"sheet":"s8","index":7,"n_rows":4,"n_cols":3,"rows_kept":4,"cut":false,"hidden":false,"merged":[]}
[]
[]
[]
["ت","الاسم ","العنوان الوظيفي"]

{"sheet":"بحث","index":8,"n_rows":8,"n_cols":4,"rows_kept":8,"cut":false,"hidden":false,"merged":[]}
[]
[]
[null,"مريم ماجد موسى"]
[]
[]
["ت","الاسم ","العنوان الوظيفي"]
[37,"مريم ماجد موسى","معاونة","s4"]
[4,"مريم ماجد موسى","معاونة","s7"]

{"sheet":"Setting","index":9,"n_rows":397,"n_cols":8,"rows_kept":397,"cut":false,"hidden":true,"merged":[]}
[null,null,null,null,null,null,null,"بتول عبد توماية"]
[null,null,null,null,null,null,null,"سلمى محمد جعفر محسن"]
[null,null,null,null,null,null,null,"انتصار حمزه محمد"]
[null,null,null,null,null,null,null,"بنية علي اكبر محمد"]
[null,null,null,null,null,null,null,"ايمان جبار عظيم"]
[null,null,null,null,null,null,null,"مروة رياض وحيد"]
[null,null,null,null,null,null,null,"زينب عبد توماية علي"]
[null,null,null,null,null,null,null,"اسماء صدر الدين حسن"]
[null,null,null,null,null,null,null,"جميلة نصر الدين قاسم"]
[null,null,null,null,null,null,null,"نغم خوام عبد الصاحب"]
[null,null,null,null,null,null,null,"نجلاء حسن تايه"]
[null,null,null,null,null,null,null,"سهام جميل زاهي"]
[null,null,null,null,null,null,null,"شيماء خوام عبد الصاحب"]
[null,null,null,null,null,null,null,"عبير عبد الهادي حمادي"]
[null,null,null,null,null,null,null,"هالة محمد خليل"]
[null,null,null,null,null,null,null,"وسن عبد المهدي محمد"]
[null,null,null,null,null,null,null,"وجدان محمد حسين"]
[null,null,null,null,null,null,null,"ازهار محمد غني"]
[null,null,null,null,null,null,null,"رسل حمودي كامل"]
[null,null,null,null,null,null,null,"مها جليل جواد"]
[null,null,null,null,null,null,null,"ميعاد كاظم عزيز"]
[null,null,null,null,null,null,null,"مريم عمران محمد"]
[null,null,null,null,null,null,null,"فاطمة طه مكي"]
[null,null,null,null,null,null,null,"رحاب فؤاد رشاد"]
[null,null,null,null,null,null,null,"احلام جاسم محمد "]
[null,null,null,null,null,null,null,"ورود كريم محمد"]
[null,null,null,null,null,null,null,"ايلاف صبيح جواد"]
[null,null,null,null,null,null,null,"سارة جعفر عبد الحميد"]
[null,null,null,null,null,null,null,"غادة منير تقي"]
[null,null,null,null,null,null,null,"فاطمة حسين عليوي"]
[null,null,null,null,null,null,null,"مروة رياض وحيد"]
[null,null,null,null,null,null,null,"امير عبد المنعم عبد الصاحب شير علي"]
[null,null,null,null,null,null,null,"وديان توفيق اسماعيل"]
[null,null,null,null,null,null,null,"مكية دغيم موسى"]
[null,null,null,null,null,null,null,"وداد شاكر جبر عيسى"]
[null,null,null,null,null,null,null,"فوزية كريم ياسين"]
[null,null,null,null,null,null,null,"هادي جاسم محمد"]
[null,null,null,null,null,null,null,"شذى كاظم ابراهيم"]
[null,null,null,null,null,null,null," علي كاظم شهيد"]
[null,null,null,null,null,null,null,"عبد الباسط محمد"]
[null,null,null,null,null,null,null,"علي دايخ عبد الأمير"]
[null,null,null,null,null,null,null,"امير عبد المنعم شكر"]
[null,null,null,null,null,null,null,"ناظم جودي كاظم"]
[null,null,null,null,null,null,null,"صلاح محمد علي عبد"]
[null,null,null,null,null,null,null,"تغريد عبد الكريم"]
[null,null,null,null,null,null,null,"علي وديع القزاز"]
[null,null,null,null,null,null,null,"حسين صاحب حسين"]
[null,null,null,null,null,null,null,"حسن علي محمد"]
[null,null,null,null,null,null,null,"امير محمد حسن"]
[null,null,null,null,null,null,null,"مهدي طالب حمادي"]
[null,null,null,null,null,null,null,"قاسم عباس عبد المحمد "]
[null,null,null,null,null,null,null,"حوراء فاضل عباس"]
[null,null,null,null,null,null,null,"حسن جميل مال الله"]
[null,null,null,null,null,null,null,"تحسين علب عباس الموسوي"]
[null,null,null,null,null,null,null,"ليث رسول عبد موسى"]
[null,null,null,null,null,null,null,"اشواق راسم شهيد"]
[null,null,null,null,null,null,null,"قيس محمد رضا عبد الهادي"]
[null,null,null,null,null,null,null,"حيدر احمد تولي"]
[null,null,null,null,null,null,null,"عماد كاظم عباس"]
[null,null,null,null,null,null,null,"زكريا عيسى علي"]
[null,null,null,null,null,null,null,"حيدر علي عبد الرضا"]
[null,null,null,null,null,null,null,"ضمياء اموري مجيد"]
[null,null,null,null,null,null,null,"وسام جمال حميد حسون"]
[null,null,null,null,null,null,null,"حليمة عبد الواحد مجيد"]
[null,null,null,null,null,null,null,"هدى عبد الكاظم حسن"]
[null,null,null,null,null,null,null,"حسين علي جاسم"]
[null,null,null,null,null,null,null,"صفا عادل محمد باقر"]
[null,null,null,null,null,null,null,"علياء نعمه مرزوك"]
[null,null,null,null,null,null,null,"نضال مهدي محمد علي"]
[null,null,null,null,null,null,null,"امال عبد الامير الاطرش"]
[null,null,null,null,null,null,null,"شيماء عبد الزهرة مجيد"]
[null,null,null,null,null,null,null,"شهب جواد عبد الواحد"]
[null,null,null,null,null,null,null,"نزار عبد الرزاق مراد"]
[null,null,null,null,null,null,null,"يسرى محمد علي حمزه"]
[null,null,null,null,null,null,null,"منى محمد علي جبار"]
[null,null,null,null,null,null,null,"عذراء محمد باقر محمد"]
[null,null,null,null,null,null,null,"وفاء ماجد سلطان"]
[null,null,null,null,null,null,null,"عباس علي حسين"]
[null,null,null,null,null,null,null,"سيناء رزاق علي"]
[null,null,null,null,null,null,null,"ليلى طعمه عواد"]
[null,null,null,null,null,null,null,"شيرين حمودي عبد الهادي"]
[null,null,null,null,null,null,null,"فائزه عبد الامير"]
[null,null,null,null,null,null,null,"حيدر جاسم عبد الل.."]
[null,null,null,null,null,null,null,"يوسف عبد الحكيم"]
[null,null,null,null,null,null,null,"لمياء صباح احمد عباس"]
[null,null,null,null,null,null,null,"رشا كامل هويدي ياسين"]
[null,null,null,null,null,null,null,"فخرية محمد علي حمزة"]
[null,null,null,null,null,null,null,"صفا عادل محمد باقر"]
[null,null,null,null,null,null,null,"حسين علي محمد ابراهيم"]
[null,null,null,null,null,null,null,"شيماء طالب ناصر "]
[null,null,null,null,null,null,null,"منتهى عبود حمود جاسم الحسناوي"]
[null,null,null,null,null,null,null,"الاء حميد محمد علي هاشم الهاشمي"]
[null,null,null,null,null,null,null,"هديل رياض وداعة جواد مزرة"]
[null,null,null,null,null,null,null,"امال كاظم عبد الأمير صالح الأعسم"]
[null,null,null,null,null,null,null,"حوراء حميد مسلم"]
[null,null,null,null,null,null,null,"شيماء عبد مهدي عيسى الركابي"]
[null,null,null,null,null,null,null,"بشائر جودي كاظم حسون القرة غولي"]
[null,null,null,null,null,null,null,"وفاء عباس مسلم الدعمي"]
[null,null,null,null,null,null,null,"تماضر رحيم عبد الكعبي"]
[null,null,null,null,null,null,null,"هند خزعل عمران"]
[null,null,null,null,null,null,null,"رسل عبد المجيد عبد الحميد"]
[null,null,null,null,null,null,null,"شجى رزاق عبد فلحي"]
[null,null,null,null,null,null,null,"اسراء عبد الوهاب عبد الامير"]
[null,null,null,null,null,null,null,"نادية كاظم خليل "]
[null,null,null,null,null,null,null,"ايمان طالب عبد ايوب عبد الفتلاوي"]
[null,null,null,null,null,null,null,"غصون حليم عبد الحسين"]
[null,null,null,null,null,null,null,"ازهار شاكر خضير عباس الشمري "]
[null,null,null,null,null,null,null,"حوراء علي مسلم"]
[null,null,null,null,null,null,null,"سارة عبد الزهرة نجم عبد الجبوري"]
[null,null,null,null,null,null,null,"اسراء كامل رحيم"]
[null,null,null,null,null,null,null,"زينب عماد عبد الل.. المندلاوي"]
[null,null,null,null,null,null,null,"هدى راهي جبار اسماعيل"]
[null,null,null,null,null,null,null,"حنان مهدي محمد علي الكيشوان"]
[null,null,null,null,null,null,null,"فرح رعد إبراهيم "]
[null,null,null,null,null,null,null,"زهراء عبد الامير عزيز الموسوي"]
[null,null,null,null,null,null,null,"نور حسن حميد"]
[null,null,null,null,null,null,null,"منال هلال ناجي خوير"]
[null,null,null,null,null,null,null,"ولاء حاكم هجول"]
[null,null,null,null,null,null,null,"سوزان مجيد عباس"]
[null,null,null,null,null,null,null,"جنان حنوف كاظم"]
[null,null,null,null,null,null,null,"زهراء كاظم علي محمد حرز"]
[null,null,null,null,null,null,null,"غصون حليم عبد الحسين"]
[null,null,null,null,null,null,null,"رقية جواد عبد الكاظم علي"]
[null,null,null,null,null,null,null,"نورهان عبد الامير علي عبد الله"]
[null,null,null,null,null,null,null,"نور الهدى سليم هادي مهدي"]
[null,null,null,null,null,null,null,"خلود عبود حمود"]
[null,null,null,null,null,null,null,"حوراء ميثم مجيد"]
[null,null,null,null,null,null,null,"سوزان ادور مهدي"]
[null,null,null,null,null,null,null,"راوية صالح مهدي"]
[null,null,null,null,null,null,null,"فائزة نوري ابو اللوخ"]
[null,null,null,null,null,null,null,"عبير جاسم نصيف"]
[null,null,null,null,null,null,null,"اسماء نوري عبد الحسين"]
[null,null,null,null,null,null,null,"حوراء حبيب مهدي"]
[null,null,null,null,null,null,null,"ختام عبد منذور"]
[null,null,null,null,null,null,null,"سكينة سلام عبد"]
[null,null,null,null,null,null,null,"اسراء زهير غني"]
[null,null,null,null,null,null,null,"امنة قاسم نعمه"]
[null,null,null,null,null,null,null,"عبير صالح مهدي"]
[null,null,null,null,null,null,null,"زينب محمد ابراهيم"]
[null,null,null,null,null,null,null,"نور الهدى سلام عبد"]
[null,null,null,null,null,null,null,"رقية عبد السجاد"]
[null,null,null,null,null,null,null,"اسراء حائر كحيط"]
[null,null,null,null,null,null,null,"فاطمة صباح كاظم فاهم"]
[null,null,null,null,null,null,null,"ضحى كاظم جاسم "]
[null,null,null,null,null,null,null,"سميرة كاظم خضير"]
[null,null,null,null,null,null,null,"دعاء محسن عبود"]
[null,null,null,null,null,null,null,"زينب خليل نعمه"]
[null,null,null,null,null,null,null,"سيناء حمزة راضي عبود"]
[null,null,null,null,null,null,null,"نورا معين مجيد"]
[null,null,null,null,null,null,null,"رسل نعمة غني موسى الحمامي"]
[null,null,null,null,null,null,null,"لمى محمد عبد الجليل راضي "]
[null,null,null,null,null,null,null,"نسرين كاظم جاسم"]
[null,null,null,null,null,null,null,"زينب عبد الحسن جبر"]
[null,null,null,null,null,null,null,"اسماء عبد الله هادي هاني الجراح"]
[null,null,null,null,null,null,null,"رؤى علي حسن أحمد الخطيب "]
[null,null,null,null,null,null,null,"حنان عباس علي عبود مجي"]
[null,null,null,null,null,null,null,"علياء كريم محمد"]
[null,null,null,null,null,null,null,"زينب رزاق كاظم"]
[null,null,null,null,null,null,null,"سلوى جابر يوسف"]
[null,null,null,null,null,null,null,"نور عبد الاميرعزيز"]
[null,null,null,null,null,null,null,"اسماء انيس هادي جعفر محي الدين"]
[null,null,null,null,null,null,null,"ميساء مسلم كاظم عبد العبودي"]
[null,null,null,null,null,null,null,"رحيمة محمد عبد زيد العبدلي"]
[null,null,null,null,null,null,null,"بشائر جبار عزيز الشمري"]
[null,null,null,null,null,null,null,"ريام كاظم ناصر كاظم"]
[null,null,null,null,null,null,null,"سهام عواد محمد حسن العادلي "]
[null,null,null,null,null,null,null,"رشا كريم حسن الجنابي"]
[null,null,null,null,null,null,null,"رنا سليم مهدي الطباطبائي"]
[null,null,null,null,null,null,null,"زهراء صاحب مهدي لفتة الحسناوي"]
[null,null,null,null,null,null,null,"لمى حاتم صادق مجيد الأنباري"]
[null,null,null,null,null,null,null,"فضاء عواد جاسم موسى"]
[null,null,null,null,null,null,null,"ازهار احمد محمود حسين الششترلي "]
[null,null,null,null,null,null,null,"هديل عادل محمد باقر الشماع"]
[null,null,null,null,null,null,null,"مصطفى سلمان حسين"]
[null,null,null,null,null,null,null,"وسام رحيم حسن "]
[null,null,null,null,null,null,null,"سيف حيدر عبد الكاظم"]
[null,null,null,null,null,null,null,"شفاء عبد الجبار كاظم"]
[null,null,null,null,null,null,null,"حوراء سلمان كاظم حبيب العتيجاوي"]
[null,null,null,null,null,null,null,"نورا زهير شاكر"]
[null,null,null,null,null,null,null,"منار كريم منصور"]
[null,null,null,null,null,null,null,"زينب خليل نعمه"]
[null,null,null,null,null,null,null,"جنان جليل جواد "]
[null,null,null,null,null,null,null,"اسماء ضياء حسن"]
[null,null,null,null,null,null,null,"عذراء علي حسن"]
[null,null,null,null,null,null,null,"احلام لطيف عبد اليمة"]
[null,null,null,null,null,null,null,"مريم ماجد موسى"]
[null,null,null,null,null,null,null,"صفاء محمد حميد"]
[null,null,null,null,null,null,null,"انتظار جبار عباس"]
[null,null,null,null,null,null,null,"عذراء غني احمد"]
[null,null,null,null,null,null,null,"إسراء علاء حسين "]
[null,null,null,null,null,null,null,"رباب مهدي صالح"]
[null,null,null,null,null,null,null,"زينب ياسر شريف"]
[null,null,null,null,null,null,null,"رشا محمد عيسى"]
[null,null,null,null,null,null,null,"عفاف توفيق عباس"]
[null,null,null,null,null,null,null,"ميامي كريم كنش"]
[null,null,null,null,null,null,null,"نهى احمد محمود"]
[null,null,null,null,null,null,null,"اسيل خضر عباس"]
[null,null,null,null,null,null,null,"رشا عماد كامل"]
[null,null,null,null,null,null,null,"نجلاء محسن مجيد"]
[null,null,null,null,null,null,null,"ورود مجيد  شاكر"]
[null,null,null,null,null,null,null,"زينب عباس سعيد"]
[null,null,null,null,null,null,null,"حوراء حسين كاظم"]
[null,null,null,null,null,null,null,"اشواق محمد عبيد"]
[null,null,null,null,null,null,null,"شيماء رزاق كاظم محمود"]
[null,null,null,null,null,null,null,"شيماء عبد المهدي ناجي"]
[null,null,null,null,null,null,null,"قمر علي محسن علوان"]
[null,null,null,null,null,null,null,"صبا نعمان عباس"]
[null,null,null,null,null,null,null,"سيناء حمزه راضي "]
[null,null,null,null,null,null,null,"زينب حسن علي جمعه"]
[null,null,null,null,null,null,null,"زهراء شفيع عبد مدلل"]
[null,null,null,null,null,null,null,"الاء عبد الاله فرج"]
[null,null,null,null,null,null,null,"نبراس صادق رزاق"]
[null,null,null,null,null,null,null,"انتصار عبد توماية "]
[null,null,null,null,null,null,null,"نور راضي محسن"]
[null,null,null,null,null,null,null,"صبا نعمان عباس"]
[null,null,null,null,null,null,null,"فاطمة جابر عبد الهادي "]
[null,null,null,null,null,null,null,"شيماء موحان عطية"]
[null,null,null,null,null,null,null,"زينب صباح محمد سعيد سيد سلمان"]
[null,null,null,null,null,null,null,"شفاء عبد الجبار كاظم"]
[null,null,null,null,null,null,null,"اسماء نوري عبد الحسن الزرفي"]
[null,null,null,null,null,null,null,"دعاء نجم عبود نجم"]
[null,null,null,null,null,null,null,"زينب فائز مهدي حسن"]
[null,null,null,null,null,null,null,"الاء علي محمد جودة الناجي"]
[null,null,null,null,null,null,null,"زينب حسن عبد الامير الهيبي"]
[null,null,null,null,null,null,null,"سرى رضا علوان الرفيعي"]
[null,null,null,null,null,null,null,"ياسمين كرجي احمد الدهوي"]
[null,null,null,null,null,null,null,{"$f":"IF('s8'!B5=\"\",\"\",'s8'!B5)","v":""}]
[null,null,null,null,null,null,null,{"$f":"IF('s8'!B6=\"\",\"\",'s8'!B6)","v":""}]
[null,null,null,null,null,null,null,{"$f":"IF('s8'!B7=\"\",\"\",'s8'!B7)","v":""}]
[null,null,null,null,null,null,null,{"$f":"IF('s8'!B8=\"\",\"\",'s8'!B8)","v":""}]
[null,null,null,null,null,null,null,{"$f":"IF('s8'!B9=\"\",\"\",'s8'!B9)","v":""}]
[null,null,null,null,null,null,null,{"$f":"IF('s8'!B10=\"\",\"\",'s8'!B10)","v":""}]
[null,null,null,null,null,null,null,{"$f":"IF('s8'!B11=\"\",\"\",'s8'!B11)","v":""}]
[null,null,null,null,null,null,null,{"$f":"IF('s8'!B12=\"\",\"\",'s8'!B12)","v":""}]
[null,null,null,null,null,null,null,{"$f":"IF('s8'!B13=\"\",\"\",'s8'!B13)","v":""}]
[null,null,null,null,null,null,null,{"$f":"IF('s8'!B14=\"\",\"\",'s8'!B14)","v":""}]
[null,null,null,null,null,null,null,{"$f":"IF('s8'!B15=\"\",\"\",'s8'!B15)","v":""}]
[null,null,null,null,null,null,null,{"$f":"IF('s8'!B16=\"\",\"\",'s8'!B16)","v":""}]
[null,null,null,null,null,null,null,{"$f":"IF('s8'!B17=\"\",\"\",'s8'!B17)","v":""}]
[null,null,null,null,null,null,null,{"$f":"IF('s8'!B18=\"\",\"\",'s8'!B18)","v":""}]
[null,null,null,null,null,null,null,{"$f":"IF('s8'!B19=\"\",\"\",'s8'!B19)","v":""}]
[null,null,null,null,null,null,null,{"$f":"IF('s8'!B20=\"\",\"\",'s8'!B20)","v":""}]
[null,null,null,null,null,null,null,{"$f":"IF('s8'!B21=\"\",\"\",'s8'!B21)","v":""}]
[null,null,null,null,null,null,null,{"$f":"IF('s8'!B22=\"\",\"\",'s8'!B22)","v":""}]
[null,null,null,null,null,null,null,{"$f":"IF('s8'!B23=\"\",\"\",'s8'!B23)","v":""}]
[null,null,null,null,null,null,null,{"$f":"IF('s8'!B24=\"\",\"\",'s8'!B24)","v":""}]
[null,null,null,null,null,null,null,{"$f":"IF('s8'!B25=\"\",\"\",'s8'!B25)","v":""}]
[null,null,null,null,null,null,null,{"$f":"IF('s8'!B26=\"\",\"\",'s8'!B26)","v":""}]
[null,null,null,null,null,null,null,{"$f":"IF('s8'!B27=\"\",\"\",'s8'!B27)","v":""}]
[null,null,null,null,null,null,null,{"$f":"IF('s8'!B28=\"\",\"\",'s8'!B28)","v":""}]
[null,null,null,null,null,null,null,{"$f":"IF('s8'!B29=\"\",\"\",'s8'!B29)","v":""}]
[null,null,null,null,null,null,null,{"$f":"IF('s8'!B30=\"\",\"\",'s8'!B30)","v":""}]
[null,null,null,null,null,null,null,{"$f":"IF('s8'!B31=\"\",\"\",'s8'!B31)","v":""}]
[null,null,null,null,null,null,null,{"$f":"IF('s8'!B32=\"\",\"\",'s8'!B32)","v":""}]
[null,null,null,null,null,null,null,{"$f":"IF('s8'!B33=\"\",\"\",'s8'!B33)","v":""}]
[null,null,null,null,null,null,null,{"$f":"IF('s8'!B34=\"\",\"\",'s8'!B34)","v":""}]
[null,null,null,null,null,null,null,{"$f":"IF('s8'!B35=\"\",\"\",'s8'!B35)","v":""}]
[null,null,null,null,null,null,null,{"$f":"IF('s8'!B36=\"\",\"\",'s8'!B36)","v":""}]
[null,null,null,null,null,null,null,{"$f":"IF('s8'!B37=\"\",\"\",'s8'!B37)","v":""}]
[null,null,null,null,null,null,null,{"$f":"IF('s8'!B38=\"\",\"\",'s8'!B38)","v":""}]
[null,null,null,null,null,null,null,{"$f":"IF('s8'!B39=\"\",\"\",'s8'!B39)","v":""}]
[null,null,null,null,null,null,null,{"$f":"IF('s8'!B40=\"\",\"\",'s8'!B40)","v":""}]
[null,null,null,null,null,null,null,{"$f":"IF('s8'!B41=\"\",\"\",'s8'!B41)","v":""}]
[null,null,null,null,null,null,null,{"$f":"IF('s8'!B42=\"\",\"\",'s8'!B42)","v":""}]
[null,null,null,null,null,null,null,{"$f":"IF('s8'!B43=\"\",\"\",'s8'!B43)","v":""}]
[null,null,null,null,null,null,null,{"$f":"IF('s8'!B44=\"\",\"\",'s8'!B44)","v":""}]
[null,null,null,null,null,null,null,{"$f":"IF('s8'!B45=\"\",\"\",'s8'!B45)","v":""}]
[null,null,null,null,null,null,null,{"$f":"IF('s8'!B46=\"\",\"\",'s8'!B46)","v":""}]
[null,null,null,null,null,null,null,{"$f":"IF('s8'!B47=\"\",\"\",'s8'!B47)","v":""}]
[null,null,null,null,null,null,null,{"$f":"IF('s8'!B48=\"\",\"\",'s8'!B48)","v":""}]
[null,null,null,null,null,null,null,{"$f":"IF('s8'!B49=\"\",\"\",'s8'!B49)","v":""}]
[null,null,null,null,null,null,null,{"$f":"IF('s8'!B50=\"\",\"\",'s8'!B50)","v":""}]
[null,null,null,null,null,null,null,{"$f":"IF('s8'!B51=\"\",\"\",'s8'!B51)","v":""}]
[null,null,null,null,null,null,null,{"$f":"IF('s8'!B52=\"\",\"\",'s8'!B52)","v":""}]
[null,null,null,null,null,null,null,{"$f":"IF('s8'!B53=\"\",\"\",'s8'!B53)","v":""}]
[null,null,null,null,null,null,null,{"$f":"IF('s8'!B54=\"\",\"\",'s8'!B54)","v":""}]
[null,null,null,null,null,null,null,{"$f":"IF('s8'!B55=\"\",\"\",'s8'!B55)","v":""}]
[null,null,null,null,null,null,null,{"$f":"IF('s8'!B56=\"\",\"\",'s8'!B56)","v":""}]
[null,null,null,null,null,null,null,{"$f":"IF('s8'!B57=\"\",\"\",'s8'!B57)","v":""}]
[null,null,null,null,null,null,null,{"$f":"IF('s8'!B58=\"\",\"\",'s8'!B58)","v":""}]
[null,null,null,null,null,null,null,{"$f":"IF('s8'!B59=\"\",\"\",'s8'!B59)","v":""}]
[null,null,null,null,null,null,null,{"$f":"IF('s8'!B60=\"\",\"\",'s8'!B60)","v":""}]
[null,null,null,null,null,null,null,{"$f":"IF('s8'!B61=\"\",\"\",'s8'!B61)","v":""}]
[null,null,null,null,null,null,null,{"$f":"IF('s8'!B62=\"\",\"\",'s8'!B62)","v":""}]
[null,null,null,null,null,null,null,{"$f":"IF('s8'!B63=\"\",\"\",'s8'!B63)","v":""}]
[null,null,null,null,null,null,null,{"$f":"IF('s8'!B64=\"\",\"\",'s8'!B64)","v":""}]
[null,null,null,null,null,null,null,{"$f":"IF('s8'!B65=\"\",\"\",'s8'!B65)","v":""}]
[null,null,null,null,null,null,null,{"$f":"IF('s8'!B66=\"\",\"\",'s8'!B66)","v":""}]
[null,null,null,null,null,null,null,{"$f":"IF('s8'!B67=\"\",\"\",'s8'!B67)","v":""}]
[null,null,null,null,null,null,null,{"$f":"IF('s8'!B68=\"\",\"\",'s8'!B68)","v":""}]
[null,null,null,null,null,null,null,{"$f":"IF('s8'!B69=\"\",\"\",'s8'!B69)","v":""}]
[null,null,null,null,null,null,null,{"$f":"IF('s8'!B70=\"\",\"\",'s8'!B70)","v":""}]
[null,null,null,null,null,null,null,{"$f":"IF('s8'!B71=\"\",\"\",'s8'!B71)","v":""}]
[null,null,null,null,null,null,null,{"$f":"IF('s8'!B72=\"\",\"\",'s8'!B72)","v":""}]
[null,null,null,null,null,null,null,{"$f":"IF('s8'!B73=\"\",\"\",'s8'!B73)","v":""}]
[null,null,null,null,null,null,null,{"$f":"IF('s8'!B74=\"\",\"\",'s8'!B74)","v":""}]
[null,null,null,null,null,null,null,{"$f":"IF('s8'!B75=\"\",\"\",'s8'!B75)","v":""}]
[null,null,null,null,null,null,null,{"$f":"IF('s8'!B76=\"\",\"\",'s8'!B76)","v":""}]
[null,null,null,null,null,null,null,{"$f":"IF('s8'!B77=\"\",\"\",'s8'!B77)","v":""}]
[null,null,null,null,null,null,null,{"$f":"IF('s8'!B78=\"\",\"\",'s8'!B78)","v":""}]
[null,null,null,null,null,null,null,{"$f":"IF('s8'!B79=\"\",\"\",'s8'!B79)","v":""}]
[null,null,null,null,null,null,null,{"$f":"IF('s8'!B80=\"\",\"\",'s8'!B80)","v":""}]
[null,null,null,null,null,null,null,{"$f":"IF('s8'!B81=\"\",\"\",'s8'!B81)","v":""}]
[null,null,null,null,null,null,null,{"$f":"IF('s8'!B82=\"\",\"\",'s8'!B82)","v":""}]
[null,null,null,null,null,null,null,{"$f":"IF('s8'!B83=\"\",\"\",'s8'!B83)","v":""}]
[null,null,null,null,null,null,null,{"$f":"IF('s8'!B84=\"\",\"\",'s8'!B84)","v":""}]
[null,null,null,null,null,null,null,{"$f":"IF('s8'!B85=\"\",\"\",'s8'!B85)","v":""}]
[null,null,null,null,null,null,null,{"$f":"IF('s8'!B86=\"\",\"\",'s8'!B86)","v":""}]
[null,null,null,null,null,null,null,{"$f":"IF('s8'!B87=\"\",\"\",'s8'!B87)","v":""}]
[null,null,null,null,null,null,null,{"$f":"IF('s8'!B88=\"\",\"\",'s8'!B88)","v":""}]
[null,null,null,null,null,null,null,{"$f":"IF('s8'!B89=\"\",\"\",'s8'!B89)","v":""}]
[null,null,null,null,null,null,null,{"$f":"IF('s8'!B90=\"\",\"\",'s8'!B90)","v":""}]
[null,null,null,null,null,null,null,{"$f":"IF('s8'!B91=\"\",\"\",'s8'!B91)","v":""}]
[null,null,null,null,null,null,null,{"$f":"IF('s8'!B92=\"\",\"\",'s8'!B92)","v":""}]
[null,null,null,null,null,null,null,{"$f":"IF('s8'!B93=\"\",\"\",'s8'!B93)","v":""}]
[null,null,null,null,null,null,null,{"$f":"IF('s8'!B94=\"\",\"\",'s8'!B94)","v":""}]
[null,null,null,null,null,null,null,{"$f":"IF('s8'!B95=\"\",\"\",'s8'!B95)","v":""}]
[null,null,null,null,null,null,null,{"$f":"IF('s8'!B96=\"\",\"\",'s8'!B96)","v":""}]
[null,null,null,null,null,null,null,{"$f":"IF('s8'!B97=\"\",\"\",'s8'!B97)","v":""}]
[null,null,null,null,null,null,null,{"$f":"IF('s8'!B98=\"\",\"\",'s8'!B98)","v":""}]
[null,null,null,null,null,null,null,{"$f":"IF('s8'!B99=\"\",\"\",'s8'!B99)","v":""}]
[null,null,null,null,null,null,null,{"$f":"IF('s8'!B100=\"\",\"\",'s8'!B100)","v":""}]
[null,null,null,null,null,null,null,{"$f":"IF('s8'!B101=\"\",\"\",'s8'!B101)","v":""}]
[null,null,null,null,null,null,null,{"$f":"IF('s8'!B102=\"\",\"\",'s8'!B102)","v":""}]
[null,null,null,null,null,null,null,{"$f":"IF('s8'!B103=\"\",\"\",'s8'!B103)","v":""}]
[null,null,null,null,null,null,null,{"$f":"IF('s8'!B104=\"\",\"\",'s8'!B104)","v":""}]
[null,null,null,null,null,null,null,{"$f":"IF('s8'!B105=\"\",\"\",'s8'!B105)","v":""}]
[null,null,null,null,null,null,null,{"$f":"IF('s8'!B106=\"\",\"\",'s8'!B106)","v":""}]
[null,null,null,null,null,null,null,{"$f":"IF('s8'!B107=\"\",\"\",'s8'!B107)","v":""}]
[null,null,null,null,null,null,null,{"$f":"IF('s8'!B108=\"\",\"\",'s8'!B108)","v":""}]
[null,null,null,null,null,null,null,{"$f":"IF('s8'!B109=\"\",\"\",'s8'!B109)","v":""}]
[null,null,null,null,null,null,null,{"$f":"IF('s8'!B110=\"\",\"\",'s8'!B110)","v":""}]
[null,null,null,null,null,null,null,{"$f":"IF('s8'!B111=\"\",\"\",'s8'!B111)","v":""}]
[null,null,null,null,null,null,null,{"$f":"IF('s8'!B112=\"\",\"\",'s8'!B112)","v":""}]
[null,null,null,null,null,null,null,{"$f":"IF('s8'!B113=\"\",\"\",'s8'!B113)","v":""}]
[null,null,null,null,null,null,null,{"$f":"IF('s8'!B114=\"\",\"\",'s8'!B114)","v":""}]
[null,null,null,null,null,null,null,{"$f":"IF('s8'!B115=\"\",\"\",'s8'!B115)","v":""}]
[null,null,null,null,null,null,null,{"$f":"IF('s8'!B116=\"\",\"\",'s8'!B116)","v":""}]
[null,null,null,null,null,null,null,{"$f":"IF('s8'!B117=\"\",\"\",'s8'!B117)","v":""}]
[null,null,null,null,null,null,null,{"$f":"IF('s8'!B118=\"\",\"\",'s8'!B118)","v":""}]
[null,null,null,null,null,null,null,{"$f":"IF('s8'!B119=\"\",\"\",'s8'!B119)","v":""}]
[null,null,null,null,null,null,null,{"$f":"IF('s8'!B120=\"\",\"\",'s8'!B120)","v":""}]
[null,null,null,null,null,null,null,{"$f":"IF('s8'!B121=\"\",\"\",'s8'!B121)","v":""}]
[null,null,null,null,null,null,null,{"$f":"IF('s8'!B122=\"\",\"\",'s8'!B122)","v":""}]
[null,null,null,null,null,null,null,{"$f":"IF('s8'!B123=\"\",\"\",'s8'!B123)","v":""}]
[null,null,null,null,null,null,null,{"$f":"IF('s8'!B124=\"\",\"\",'s8'!B124)","v":""}]
[null,null,null,null,null,null,null,{"$f":"IF('s8'!B125=\"\",\"\",'s8'!B125)","v":""}]
[null,null,null,null,null,null,null,{"$f":"IF('s8'!B126=\"\",\"\",'s8'!B126)","v":""}]
[null,null,null,null,null,null,null,{"$f":"IF('s8'!B127=\"\",\"\",'s8'!B127)","v":""}]
[null,null,null,null,null,null,null,{"$f":"IF('s8'!B128=\"\",\"\",'s8'!B128)","v":""}]
[null,null,null,null,null,null,null,{"$f":"IF('s8'!B129=\"\",\"\",'s8'!B129)","v":""}]
[null,null,null,null,null,null,null,{"$f":"IF('s8'!B130=\"\",\"\",'s8'!B130)","v":""}]
[null,null,null,null,null,null,null,{"$f":"IF('s8'!B131=\"\",\"\",'s8'!B131)","v":""}]
[null,null,null,null,null,null,null,{"$f":"IF('s8'!B132=\"\",\"\",'s8'!B132)","v":""}]
[null,null,null,null,null,null,null,{"$f":"IF('s8'!B133=\"\",\"\",'s8'!B133)","v":""}]
[null,null,null,null,null,null,null,{"$f":"IF('s8'!B134=\"\",\"\",'s8'!B134)","v":""}]
[null,null,null,null,null,null,null,{"$f":"IF('s8'!B135=\"\",\"\",'s8'!B135)","v":""}]
[null,null,null,null,null,null,null,{"$f":"IF('s8'!B136=\"\",\"\",'s8'!B136)","v":""}]
[null,null,null,null,null,null,null,{"$f":"IF('s8'!B137=\"\",\"\",'s8'!B137)","v":""}]
[null,null,null,null,null,null,null,{"$f":"IF('s8'!B138=\"\",\"\",'s8'!B138)","v":""}]
[null,null,null,null,null,null,null,{"$f":"IF('s8'!B139=\"\",\"\",'s8'!B139)","v":""}]
[null,null,null,null,null,null,null,{"$f":"IF('s8'!B140=\"\",\"\",'s8'!B140)","v":""}]
[null,null,null,null,null,null,null,{"$f":"IF('s8'!B141=\"\",\"\",'s8'!B141)","v":""}]
[null,null,null,null,null,null,null,{"$f":"IF('s8'!B142=\"\",\"\",'s8'!B142)","v":""}]
[null,null,null,null,null,null,null,{"$f":"IF('s8'!B143=\"\",\"\",'s8'!B143)","v":""}]
[null,null,null,null,null,null,null,{"$f":"IF('s8'!B144=\"\",\"\",'s8'!B144)","v":""}]
[null,null,null,null,null,null,null,{"$f":"IF('s8'!B145=\"\",\"\",'s8'!B145)","v":""}]
[null,null,null,null,null,null,null,{"$f":"IF('s8'!B146=\"\",\"\",'s8'!B146)","v":""}]
[null,null,null,null,null,null,null,{"$f":"IF('s8'!B147=\"\",\"\",'s8'!B147)","v":""}]
[null,null,null,null,null,null,null,{"$f":"IF('s8'!B148=\"\",\"\",'s8'!B148)","v":""}]
[null,null,null,null,null,null,null,{"$f":"IF('s8'!B149=\"\",\"\",'s8'!B149)","v":""}]
[null,null,null,null,null,null,null,{"$f":"IF('s8'!B150=\"\",\"\",'s8'!B150)","v":""}]
[null,null,null,null,null,null,null,{"$f":"IF('s8'!B151=\"\",\"\",'s8'!B151)","v":""}]
[null,null,null,null,null,null,null,{"$f":"IF('s8'!B152=\"\",\"\",'s8'!B152)","v":""}]
[null,null,null,null,null,null,null,{"$f":"IF('s8'!B153=\"\",\"\",'s8'!B153)","v":""}]
[null,null,null,null,null,null,null,{"$f":"IF('s8'!B154=\"\",\"\",'s8'!B154)","v":""}]
[null,null,null,null,null,null,null,{"$f":"IF('s8'!B155=\"\",\"\",'s8'!B155)","v":""}]
[null,null,null,null,null,null,null,{"$f":"IF('s8'!B156=\"\",\"\",'s8'!B156)","v":""}]
[null,null,null,null,null,null,null,{"$f":"IF('s8'!B157=\"\",\"\",'s8'!B157)","v":""}]
[null,null,null,null,null,null,null,{"$f":"IF('s8'!B158=\"\",\"\",'s8'!B158)","v":""}]
[null,null,null,null,null,null,null,{"$f":"IF('s8'!B159=\"\",\"\",'s8'!B159)","v":""}]
[null,null,null,null,null,null,null,{"$f":"IF('s8'!B160=\"\",\"\",'s8'!B160)","v":""}]
[null,null,null,null,null,null,null,{"$f":"IF('s8'!B161=\"\",\"\",'s8'!B161)","v":""}]
[null,null,null,null,null,null,null,{"$f":"IF('s8'!B162=\"\",\"\",'s8'!B162)","v":""}]
[null,null,null,null,null,null,null,{"$f":"IF('s8'!B163=\"\",\"\",'s8'!B163)","v":""}]
[null,null,null,null,null,null,null,{"$f":"IF('s8'!B164=\"\",\"\",'s8'!B164)","v":""}]
[null,null,null,null,null,null,null,{"$f":"IF('s8'!B165=\"\",\"\",'s8'!B165)","v":""}]
[null,null,null,null,null,null,null,{"$f":"IF('s8'!B166=\"\",\"\",'s8'!B166)","v":""}]
[null,null,null,null,null,null,null,{"$f":"IF('s8'!B167=\"\",\"\",'s8'!B167)","v":""}]
[null,null,null,null,null,null,null,{"$f":"IF('s8'!B168=\"\",\"\",'s8'!B168)","v":""}]
[null,null,null,null,null,null,null,{"$f":"IF('s8'!B169=\"\",\"\",'s8'!B169)","v":""}]
[null,null,null,null,null,null,null,{"$f":"IF('s8'!B170=\"\",\"\",'s8'!B170)","v":""}]
[null,null,null,null,null,null,null,{"$f":"IF('s8'!B171=\"\",\"\",'s8'!B171)","v":""}]
[null,null,null,null,null,null,null,{"$f":"IF('s8'!B172=\"\",\"\",'s8'!B172)","v":""}]
[null,null,null,null,null,null,null,{"$f":"IF('s8'!B173=\"\",\"\",'s8'!B173)","v":""}]
[null,null,null,null,null,null,null,{"$f":"IF('s8'!B174=\"\",\"\",'s8'!B174)","v":""}]
[null,null,null,null,null,null,null,{"$f":"IF('s8'!B175=\"\",\"\",'s8'!B175)","v":""}]